{"text_format":"1","workbook":"xlsx","n_sheets":3,"sheets":["I.","obl","zav"],"not_rendered":{"charts":0,"images":0,"macros":1,"external_links":0,"defined_names":1,"comments":0,"pivot_tables":0},"unopened":[],"bounds":{"document_bytes":16777216,"sheet_cells":100000,"rows_first":2000,"rows_last":500,"rows_between":2000,"halvings":0,"cell_chars":16384,"cell_head_chars":4096},"cells_cut":0,"cells_raw":0,"read":"whole","date_system":"1900"}

{"sheet":"I.","index":0,"n_rows":115,"n_cols":12,"rows_kept":115,"cut":false,"hidden":false,"merged":[[12,10,13,10],[12,11,13,11],[99,2,99,4],[99,6,99,8],[100,2,100,4],[100,6,100,8],[106,0,106,2],[1,2,1,4],[2,2,2,8],[1,6,1,9],[7,1,7,7],[12,1,13,1],[12,2,13,2],[12,3,13,3],[12,4,12,6],[12,7,12,8],[101,2,101,4],[101,6,101,8]]}
[null,null,null,null,null,null,null,null,null,null,null,"Приложение №9"]
[{"$f":"IF(ISNA(VLOOKUP(C2,obl!A1:B28,2,FALSE))=TRUE,\"\",(VLOOKUP(C2,obl!A1:B28,2,FALSE)))","v":""},"Област",null,null,null,null,{"$f":"IF(MID(C2,1,2)=MID(C3,1,2),\"\",\"избери заведение с код от същата област \")","v":""},null,null,null,null,"към формуляр 365-О и 365Б-О"]
[{"$f":"IF(ISNA(VLOOKUP(C3,zav!B1:C557,2,FALSE))=TRUE,\"\",(VLOOKUP(C3,zav!B1:C557,2,FALSE)))","v":""},"Лечебно заведение",null,null,null,null,null,null,null,null,null,"Представя се от всички лечебни заведения"]
[null,"Година на обработка",2023]
[]
[]
[]
[1,"РЕНТГЕНОВИ ИЗСЛЕДВАНИЯ И ПРОЦЕДУРИ"]
[]
[]
[null,null,null,null,null,null,null,null,null,null,"ХОРИЗОНТАЛЕН КОНТРОЛ:"]
[null,null,null,null,null,null,null,null,"Брой"]
[null,"Вид на изследването","ши-фър","ОБЩО","Разпределение по възрастови групи",null,null,"Разпределение по пол",null,null,"к.1= к.2 +к.3+ к.4","к.1= к.5+к.6"]
[null,null,null,null,"0-14 год.","15-39 год.","над 40 год.","мъже","жени"]
[null,"а","б",1,2,3,4,5,6]
[null,"Графия на гръдна клетка","01",null,null,null,null,null,null,null,{"$f":"IF(D16=E16+F16+G16,\"\",\"грешка\")","v":""},{"$f":"IF(D16=H16+I16,\"\",\"грешка\")","v":""}]
[null,"Класическа томография1","02",null,null,null,null,null,null,null,{"$f":"IF(D17=E17+F17+G17,\"\",\"грешка\")","v":""},{"$f":"IF(D17=H17+I17,\"\",\"грешка\")","v":""}]
[null,"Флуорография","03",null,null,null,null,null,null,null,"",""]
[null,"Графия на глава","04",null,null,null,null,null,null,null,"",""]
[null,"Графия на гръбначен стълб - цервикални прешлени","05",null,null,null,null,null,null,null,"",""]
[null,"Графия на гръбначен стълб - торакални прешлени","06",null,null,null,null,null,null,null,"",""]
[null,"Графия на гръбначен стълб - лумбо-сакрална област","07",null,null,null,null,null,null,null,"",""]
[null,"Графия на гръбначен стълб - всички отдели","08",null,null,null,null,null,null,null,"",""]
[null,"Графия на таз/бедра","09",null,null,null,null,null,null,null,"",""]
[null,"Графия на крайници и/или стави ","10",null,null,null,null,null,null,null,"",""]
[null,"Графия на корем (обзорна, БУМ или друга) ","11",null,null,null,null,null,null,null,"",""]
[null,"Рентгеноскопия на гръдна клетка","12",null,null,null,null,null,null,null,"",""]
[null,"Миелография","13",null,null,null,null,null,null,null,"",""]
[null,"Контрастно изследване на хранопровод и гълтач","14",null,null,null,null,null,null,null,"",""]
[null,"Контрастно изследване на стомах и дванадесетопръстник (с или без хранопровод)","15",null,null,null,null,null,null,null,"",""]
[null,"Пасаж на черва","16",null,null,null,null,null,null,null,"",""]
[null,"Контрастно изследване на дебело черво - иригография","17",null,null,null,null,null,null,null,"",""]
[null,"Холецистография","18",null,null,null,null,null,null,null,"",""]
[null,"Ендоскопска ретроградна холангиопанкреатография (ERCP)","19",null,null,null,null,null,null,null,"",""]
[null,"Холангиография2","20",null,null,null,null,null,null,null,"",""]
[null,"Урография","21",null,null,null,null,null,null,null,"",""]
[null,"Микционна цистография","22",null,null,null,null,null,null,null,"",""]
[null,"Хистеросалпингография","23",null,null,null,null,null,null,null,"",""]
[null,"Пелвиметрия","24",null,null,null,null,null,null,null,"",""]
[null,"Мамографии","25",null,null,null,null,null,null,null,"",""]
[null,"в т.ч.: Мамографии скринингова програма","26",null,null,null,null,null,null,null,"",""]
[null,"Мамографски CBCT3 изследвания","27",null,null,null,null,null,null,null,"",""]
[null,"Артрография","28",null,null,null,null,null,null,null,"",""]
[null,"Компютърна томография - общо  (с или без контраст, включително КТ-ангиографии) ","29",null,null,null,null,null,null,null,"",""]
[null,"в т.ч. на:глава (череп и лицеви кости)","30",null,null,null,null,null,null,null,"",""]
[null,"глава (мозък и меки  тъкани)","31",null,null,null,null,null,null,null,"",""]
[null,"компютърна томография на дентална област4","32",null,null,null,null,null,null,null,"",""]
[null,"гръбначен стълб - шиен отдел","33",null,null,null,null,null,null,null,"",""]
[null,"гръбначен стълб - торакален отдел","34",null,null,null,null,null,null,null,"",""]
[null,"гръбначен стълб - лумбален отдел","35",null,null,null,null,null,null,null,"",""]
[null,"гръбначен стълб - всички отдели","36",null,null,null,null,null,null,null,"",""]
[null,"гръдна клетка","37",null,null,null,null,null,null,null,"",""]
[null,"корем (с или без малък таз)","38",null,null,null,null,null,null,null,"",""]
[null,"таз","39",null,null,null,null,null,null,null,"",""]
[null,"цяло тяло","40",null,null,null,null,null,null,null,"",""]
[null,"крайници","41",null,null,null,null,null,null,null,"",""]
[null,"други ","42",null,null,null,null,null,null,null,"",""]
[null,"Мозъчна ангиография","43",null,null,null,null,null,null,null,"",""]
[null,"Аортография с или без ангиография на крайници","44",null,null,null,null,null,null,null,"",""]
[null,"Торакална ангиография5","45",null,null,null,null,null,null,null,"",""]
[null,"Кардиална ангиография6","46",null,null,null,null,null,null,null,"",""]
[null,"Коремна ангиография7","47",null,null,null,null,null,null,null,"",""]
[null,"в т.ч.: Ренална ангиография ","48",null,null,null,null,null,null,null,"",""]
[null,"Тазова ангиография8","49",null,null,null,null,null,null,null,"",""]
[null,"Периферна ангиография9","50",null,null,null,null,null,null,null,"",""]
[null,"в т.ч.: Периферна флебография/венография ","51",null,null,null,null,null,null,null,"",""]
[null,"Лимфангиография10","52",null,null,null,null,null,null,null,"",""]
[null,"Други ангиографии","53",null,null,null,null,null,null,null,"",""]
[null,"CBCT - други 11","54",null,null,null,null,null,null,null,"",""]
[null,"Мозъчни интервенционални процедури","55",null,null,null,null,null,null,null,"",""]
[null,"Перкутанна транслуминална коронарна ангиопластика и стентиране","56",null,null,null,null,null,null,null,"",""]
[null,"Валвулопластика","57",null,null,null,null,null,null,null,"",""]
[null,"Имплантация на сърдечен стимулатор","58",null,null,null,null,null,null,null,"",""]
[null,"Други сърдечни интервенционални процедури","59",null,null,null,null,null,null,null,"",""]
[null,"Други терапевтични съдови интервенции","60",null,null,null,null,null,null,null,"",""]
[null,"Други терапевтични несъдови интервенции","61",null,null,null,null,null,null,null,"",""]
[null,"Други рентгенови изследвания или процедури","62",null,null,null,null,null,null,null,"",""]
[null,"Всичко изследвания (без дентални)","63",null,null,null,null,null,null,null,"",""]
[null,"Интраорална секторна дентография","64",null,null,null,null,null,null,null,"",""]
[null,"Панорамна дентография","65",null,null,null,null,null,null,null,"",""]
[null,"Дентално CBCT3  изследване","66",null,null,null,null,null,null,null,{"$f":"IF(D81=E81+F81+G81,\"\",\"грешка\")","v":""},{"$f":"IF(D81=H81+I81,\"\",\"грешка\")","v":""}]
[null,"Цефалометрия","67",null,null,null,null,null,null,null,"",""]
[null,"Всичко дентални изследвания ","68",null,null,null,null,null,null,null,"",""]
[null,"Общо рентгенови изследвания и процедури","69",null,null,null,null,null,null,null,"",""]
[]
[]
["ВЕРТИКАЛЕН КОНТРОЛ:"]
[null,"ш.25≥ на сумата от ш.26 и ш.27 ",null,{"$f":"IF(D40<D41+D42,\"грешка\",\"\")","v":""},{"$f":"IF(E40<E41+E42,\"грешка\",\"\")","v":""},"","","",""]
[null,"ш.29= на сумата от ш.30 до ш.42 ",null,{"$f":"IF(D44=SUM(D45:D57),\"\",\"грешка\")","v":""},{"$f":"IF(E44=SUM(E45:E57),\"\",\"грешка\")","v":""},"","","",""]
[null,"ш.47≥ ш.48 ",null,{"$f":"IF(D62<D63,\"грешка\",\"\")","v":""},{"$f":"IF(E62<E63,\"грешка\",\"\")","v":""},"","","",""]
[null,"ш.50≥ ш.51 ",null,{"$f":"IF(D65<D66,\"грешка\",\"\")","v":""},{"$f":"IF(E65<E66,\"грешка\",\"\")","v":""},"","","",""]
[null,"ш.63= на сумата от ш.1 до ш.25+ш.28+ш.29+сумата от ш.43 до ш.47 + ш.49+ш.50+сумата от ш. 52 до ш.62 ",null,{"$f":"IF(D78=SUM(D16:D40)+D43+D44+SUM(D58:D62)+D64+D65+SUM(D67:D77),\"\",\"грешка\")","v":""},{"$f":"IF(E78=SUM(E16:E40)+E43+E44+SUM(E58:E62)+E64+E65+SUM(E67:E77),\"\",\"грешка\")","v":""},"","","",""]
[null,"ш.68= на сумата от ш.64 до ш.67 ",null,{"$f":"IF(D83=SUM(D79:D82),\"\",\"грешка\")","v":""},{"$f":"IF(E83=SUM(E79:E82),\"\",\"грешка\")","v":""},"","","",""]
[null,"ш.69= на сумата от ш.63 и ш.68 ",null,{"$f":"IF(D84=D78+D83,\"\",\"грешка\")","v":""},{"$f":"IF(E84=E78+E83,\"\",\"грешка\")","v":""},"","","",""]
[]
[]
[]
[]
[null,"Данни за лицето попълнило е-формуляр"]
[null,"Име и фамилия",null,null,null,null,{"$f":"IF(C100=\"\",\"попълни име и фамилия\",\"\")","v":"попълни име и фамилия"}]
[null,"телефон",null,null,null,null,{"$f":"IF(C101=\"\",\"попълни телефон\",\"\")","v":"попълни телефон"}]
[null,"е-mail",null,null,null,null,{"$f":"IF(C102=\"\",\"попълни e-mail\",\"\")","v":"попълни e-mail"}]
[]
[]
["1 На рентгенографичен апарат"]
["2 Включително ретроградна холангиография, оперативна холангиография, интравенозна холангиография, холангиография Т-дрен, трансхепатална холангиография"]
["3 CBCT - конусно лъчева компютърна томография"]
["4 Вписват се КТ-изследвания, проведени на конвенционален компютърен томограф, не CBCT"]
["5 Включително бронхиална артериография, пулмонална артериография, горна-вена-кава-графия."]
["6 Включително коронарография на коронарните артерии с или без лява камера( с или без аорта)  "]
["7 Включително ренална артериография, мезентериална артериография, долна вена кавография, ренална флебография, супраренална флебография"]
["8 Включително тазова артериография, овариална флебография, флебография на вена сперматика"]
["9 Включително артериография или венография на горни и/или долни крайници"]
["10 Включително торакална/абдоминална/тазова лимфангиография и лимфангиография на крайници "]
["11 Конусно лъчева компютърна томография, извършена на  рентгеноскопичен/ангиографски апарат с С-рамо"]

{"sheet":"obl","index":1,"n_rows":28,"n_cols":2,"rows_kept":28,"cut":false,"hidden":true,"merged":[]}
["01 Благоевград          ","01"]
["02 Бургас               ","02"]
["03 Варна                ","03"]
["04 Велико Търново       ","04"]
["05 Видин                ","05"]
["06 Враца                ","06"]
["07 Габрово              ","07"]
["08 Добрич               ","08"]
["09 Кърджали             ","09"]
["10 Кюстендил            ","10"]
["11 Ловеч                ","11"]
["12 Монтана              ","12"]
["13 Пазарджик            ","13"]
["14 Перник               ","14"]
["15 Плевен               ","15"]
["16 Пловдив              ","16"]
["17 Разград              ","17"]
["18 Русе                 ","18"]
["19 Силистра             ","19"]
["20 Сливен               ","20"]
["21 Смолян               ","21"]
["22 София (столица)      ","22"]
["23 София                ","23"]
["24 Стара Загора         ","24"]
["25 Търговище            ","25"]
["26 Хасково              ","26"]
["27 Шумен                ","27"]
["28 Ямбол                ","28"]

{"sheet":"zav","index":2,"n_rows":557,"n_cols":3,"rows_kept":557,"cut":false,"hidden":true,"merged":[]}
["01","01 Амбулатории за ИП ПДП - Благоевград ","111"]
["01","01 Амбулатории за ГП ПДП - Благоевград ","112"]
["01","01 Амбулатории за ИП СДП - Благоевград ","121"]
["01","01 Амбулатории за ГП СДП - Благоевград ","122"]
["01","01 Амбулатории за ИП СМП - Благоевград ","131"]
["01","01 Медицински центрове - Благоевград","102"]
["01","01 Дентални центрове - Благоевград","103"]
["01","01 Медико-дентални центрове - Благоевград","104"]
["01","01 Диагностично-консултативни центрове - Благоевград","105"]
["01","01 Медико-диагностични лаборатории - Благоевград","106"]
["01","01 Медико-технически лаборатории - Благоевград","107"]
["01","01 МБАЛ - Благоевград - Благоевград","2010004"]
["01","01 МБАЛ Ив. Скендеров - Гоце Делчев","2010005"]
["01","01 МБАЛ - Разлог","2010001"]
["01","01 МБАЛ Югозападна болница - Сандански","2010003"]
["01","01 СБАЛ по онкология Св. Мина - Благоевград","2020001"]
["01","01 СБАЛ на ПФЗ - Благоевград","2030001"]
["01","01 Частна МБАЛ Пулс - Благоевград",2070001]
["02","02 Амбулатории за ИП ПДП - Бургас ","111"]
["02","02 Амбулатории за ГП ПДП - Бургас ","112"]
["02","02 Амбулатории за ИП СДП - Бургас ","121"]
["02","02 Амбулатории за ГП СДП - Бургас ","122"]
["02","02 Амбулатории за ИП СМП - Бургас ","131"]
["02","02 Медицински центрове - Бургас","102"]
["02","02 Дентални центрове - Бургас","103"]
["02","02 Медико-дентални центрове - Бургас","104"]
["02","02 Диагностично-консултативни центрове - Бургас","105"]
["02","02 Медико-диагностични лаборатории - Бургас","106"]
["02","02 Медико-технически лаборатории - Бургас","107"]
["02","02 УМБАЛ - Бургас","2010005"]
["02","02 МБАЛ - Айтос","2010001"]
["02","02 МБАЛ - Карнобат","2010002"]
["02","02 МБАЛ - Средец","2010003"]
["02","02 МБАЛ - Поморие","2010004"]
["02","02 СБАЛ ПФЗ - Бургас","2030001"]
["02","02 Частна МБАЛ Лайф Хоспитал - Бургас","2070001"]
["02","02 Частна УМБАЛ Дева Мария - Бургас","2070002"]
["02","02 Частна МБАЛ Маджуров - Бургас","2070004"]
["02","02 Частна МБАЛ Бургас мед - Бургас","2070005"]
["02","02 Частна МБАЛ Сърце и мозък - Бургас","2070003"]
["02","02 Комплексен онкологичен център - Бургас","301"]
["03","03 Амбулатории за ИП ПДП - Варна ","111"]
["03","03 Амбулатории за ГП ПДП - Варна ","112"]
["03","03 Амбулатории за ИП СДП - Варна ","121"]
["03","03 Амбулатории за ГП СДП - Варна ","122"]
["03","03 Амбулатории за ИП СМП - Варна ","131"]
["03","03 Медицински центрове - Варна","102"]
["03","03 Дентални центрове - Варна","103"]
["03","03 Медико-дентални центрове - Варна","104"]
["03","03 Диагностично-консултативни центрове - Варна","105"]
["03","03 Медико-диагностични лаборатории - Варна","106"]
["03","03 Медико-технически лаборатории - Варна","107"]
["03","03 УМБАЛ Св. Анна - Варна","2010003"]
["03","03 УМБАЛ Св. Марина - Варна","2010001"]
["03","03 МБАЛ Царица Йоанна - Провадия","2010002"]
["03","03 МБАЛ - Девня","2010004"]
["03","03 МБАЛ МТ - Варна","2010005"]
["03","03 МБАЛ ВМА - Варна","2010006"]
["03","03 СБАЛ по АГ Проф. д-р Стаматов - Варна","2020001"]
["03","03 СБАЛ по ОЗ Д-р М. А. Марков - Варна","2020002"]
["03","03 СБАЛ по ПФЗ - Варна","2030001"]
["03","03 Частна МБАЛ Еврохоспитал - Варна","2070001"]
["03","03 Частна СБАЛК Кардиолайф - Варна","2070004"]
["03","03 Частна СБАЛ по кардиология - Варна","2070005"]
["03","03 Частна МБАЛ Майчин дом - Варна","2070002"]
["04","04 Амбулатории за ИП ПДП - Велико Търново ","111"]
["04","04 Амбулатории за ГП ПДП - Велико Търново ","112"]
["04","04  Амбулатории за ИП СДП - Велико Търново ","121"]
["04","04 Амбулатории за ГП СДП - Велико Търново ","122"]
["04","04 Амбулатории за ИП СМП - Велико Търново ","131"]
["04","04 Медицински центрове - Велико Търново","102"]
["04","04 Дентални центрове - Велико Търново","103"]
["04","04 Медико-дентални центрове - Велико Търново","104"]
["04","04 Диагностично-консултативни центрове - Велико Търново","105"]
["04","04  Медико-диагностични лаборатории - Велико Търново","106"]
["04","04 Медико-технически лаборатории - Велико Търново","107"]
["04","04 МБАЛ Д-р Ст. Черкезов - Велико Търново","2010006"]
["04","04 МБАЛ Св. Ив. Рилски - Г. Оряховица","2010001"]
["04","04 МБАЛ - Павликени","2010003"]
["04","04 МБАЛ Д-р Д. Павлович - Свищов","2010005"]
["04","04 СБАЛ за ПФЗ Д-р Трейман - Велико Търново","2030001"]
["04","04 Частна СБАЛ по кардиология - Велико Търново","2070001"]
["04","04 Комплексен онкологичен център - Велико Търново","301"]
["05","05 Амбулатории за ИП ПДП - Видин ","111"]
["05","05 Амбулатории за ГП ПДП - Видин ","112"]
["05","05 Амбулатории за ИП СДП - Видин ","121"]
["05","05 Амбулатории за ГП СДП - Видин ","122"]
["05","05 Амбулатории за ИП СМП - Видин ","131"]
["05","05 Медицински центрове - Видин","102"]
["05","05 Дентални центрове - Видин","103"]
["05","05 Медико-дентални центрове - Видин","104"]
["05","05 Диагностично-консултативни центрове - Видин","105"]
["05","05 Медико-диагностични лаборатории - Видин","106"]
["05","05 Медико-технически лаборатории - Видин","107"]
["05","05 МБАЛ Св. Петка - Видин","2010001"]
["05","05 МБАЛ Проф. д-р Г. Златарски - Белоградчик","2010002"]
["06","06 Амбулатории за ИП ПДП - Враца ","111"]
["06","06 Амбулатории за ГП ПДП - Враца ","112"]
["06","06 Амбулатории за ИП СДП - Враца ","121"]
["06","06 Амбулатории за ГП СДП - Враца ","122"]
["06","06 Амбулатории за ИП СМП - Враца ","131"]
["06","06 Медицински центрове - Враца","102"]
["06","06 Дентални центрове - Враца","103"]
["06","06 Медико-дентални центрове - Враца","104"]
["06","06 Диагностично-консултативни центрове - Враца","105"]
["06","06 Медико-диагностични лаборатории - Враца","106"]
["06","06 Медико-технически лаборатории - Враца","107"]
["06","06 МБАЛ Хр. Ботев - Враца","2010005"]
["06","06 МБАЛ - Б.Слатина","2010001"]
["06","06 МБАЛ Св. Ив. Рилски - Козлодуй","2010002"]
["06","06 МБАЛ - Мездра","2010004"]
["06","06 СБПЛ на ББ - Роман","2030001"]
["06","06 СБАЛ за ПФЗ - Враца","2030002"]
["06","06 Частна - ПЧ МБАЛ - Враца","2070001"]
["06","06 СБПЛР ВБ - Мездра","2040001"]
["06","06 Комплексен онкологичен център - Враца","301"]
["07","07 Амбулатории за ИП ПДП - Габрово ","111"]
["07","07 Амбулатории за ГП ПДП - Габрово ","112"]
["07","07 Амбулатории за ИП СДП - Габрово ","121"]
["07","07 Амбулатории за ГП СДП - Габрово ","122"]
["07","07 Амбулатории за ИП СМП - Габрово ","131"]
["07","07 Медицински центрове - Габрово","102"]
["07","07 Дентални центрове - Габрово","103"]
["07","07 Медико-дентални центрове - Габрово","104"]
["07","07 Диагностично-консултативни центрове - Габрово","105"]
["07","07 Медико-диагностични лаборатории - Габрово","106"]
["07","07 Медико-технически лаборатории - Габрово","107"]
["07","07 МБАЛ Д-р Т. Венкова - Габрово","2010004"]
["07","07 МБАЛ Д-р Ст. Христов - Севлиево","2010002"]
["07","07 МБАЛ Д-р Т. Витанов - Трявна","2010003"]
["07","07 СБАЛ на ББ - Габрово","2030002"]
["07","07 Детска СБПЛР ББ -Трявна","2030001"]
["07","07 Частна МБАЛ Св. Ив. Рилски - Габрово","2070001"]
["08","08 Амбулатории за ИП ПДП - Добрич ","111"]
["08","08 Амбулатории за ГП ПДП - Добрич ","112"]
["08","08 Амбулатории за ИП СДП - Добрич ","121"]
["08","08 Амбулатории за ГП СДП - Добрич ","122"]
["08","08 Амбулатории за ИП СМП - Добрич ","131"]
["08","08 Медицински центрове - Добрич","102"]
["08","08 Дентални центрове - Добрич","103"]
["08","08 Медико-дентални центрове - Добрич","104"]
["08","08 Диагностично-консултативни центрове - Добрич","105"]
["08","08 Медико-диагностични лаборатории - Добрич","106"]
["08","08 Медико-технически лаборатории - Добрич","107"]
["08","08 МБАЛ П. Хитов - Добрич","2010001"]
["08","08 МБАЛ - Балчик","2010005"]
["08","08 МБАЛ - Каварна","2010003"]
["09","09 Амбулатории за ИП ПДП - Кърджали ","111"]
["09","09 Амбулатории за ГП ПДП - Кърджали ","112"]
["09","09 Амбулатории за ИП СДП - Кърджали ","121"]
["09","09 Амбулатории за ГП СДП - Кърджали ","122"]
["09","09 Амбулатории за ИП СМП - Кърджали ","131"]
["09","09 Медицински центрове - Кърджали","102"]
["09","09 Дентални центрове - Кърджали","103"]
["09","09 Медико-дентални центрове - Кърджали","104"]
["09","09 Диагностично-консултативни центрове - Кърджали","105"]
["09","09 Медико-диагностични лаборатории - Кърджали","106"]
["09","09 Медико-технически лаборатории - Кърджали","107"]
["09","09 МБАЛ Д-р Ат. Дафовски - Кърджали","2010004"]
["09","09 МБАЛ - Ардино","2010001"]
["09","09 МБАЛ Живот+ - Крумовград","2010002"]
["09","09 МБАЛ Д-р С. Ростовцев - Момчилград","2010003"]
["09","09 Частна МБАЛ - Кърджали","2070001"]
[10,"10 Амбулатории за ИП ПДП - Кюстендил ","111"]
[10,"10 Амбулатории за ГП ПДП - Кюстендил ","112"]
[10,"10 Амбулатории за ИП СДП - Кюстендил ","121"]
[10,"10 Амбулатории за ГП СДП - Кюстендил ","122"]
[10,"10 Амбулатории за ИП СМП - Кюстендил ","131"]
[10,"10 Медицински центрове - Кюстендил","102"]
[10,"10 Дентални центрове - Кюстендил","103"]
[10,"10 Медико-дентални центрове - Кюстендил","104"]
[10,"10 Диагностично-консултативни центрове - Кюстендил","105"]
[10,"10 Медико-диагностични лаборатории - Кюстендил","106"]
[10,"10 Медико-технически лаборатории - Кюстендил","107"]
[10,"10 МБАЛ Д-р Н. Василев - Кюстендил","2010003"]
[10,"10 МБАЛ Св. Ив. Рилски - Дупница","2010001"]
[10,"10 Частна МБАЛ Св. Ив.Рилски-2003 - Дупница","2070001"]
[11,"11 Амбулатории за ИП ПДП - Ловеч ","111"]
[11,"11 Амбулатории за ГП ПДП - Ловеч ","112"]
[11,"11 Амбулатории за ИП СДП - Ловеч ","121"]
[11,"11 Амбулатории за ГП СДП - Ловеч ","122"]
[11,"11 Амбулатории за ИП СМП - Ловеч ","131"]
[11,"11 Медицински центрове - Ловеч","102"]
[11,"11 Дентални центрове - Ловеч","103"]
[11,"11 Медико-дентални центрове - Ловеч","104"]
[11,"11 Диагностично-консултативни центрове - Ловеч","105"]
[11,"11 Медико-диагностични лаборатории - Ловеч","106"]
[11,"11 Медико-технически лаборатории - Ловеч","107"]
[11,"11 МБАЛ Проф. д-р П. Стоянов - Ловеч","2010004"]
[11,"11 МБАЛ - Троян","2010001"]
[11,"11 МБАЛ Д-р Анг. Пешев - Тетевен","2010002"]
[11,"11 МБАЛ - Луковит","2010003"]
[11,"11 СБАЛ ЛС - Ловеч","2020001"]
[11,"11 СБАЛ на ББ - Троян","2030001"]
[11,"11 Частна МБАЛ Кардиолайф - Ловеч","2070001"]
[12,"12 Амбулатории за ИП ПДП - Монтана ","111"]
[12,"12 Амбулатории за ГП ПДП - Монтана ","112"]
[12,"12 Амбулатории за ИП СДП - Монтана ","121"]
[12,"12 Амбулатории за ГП СДП - Монтана ","122"]
[12,"12 Амбулатории за ИП СМП - Монтана ","131"]
[12,"12 Медицински центрове - Монтана","102"]
[12,"12 Дентални центрове - Монтана","103"]
[12,"12 Медико-дентални центрове - Монтана","104"]
[12,"12 Диагностично-консултативни центрове - Монтана","105"]
[12,"12 Медико-диагностични лаборатории - Монтана","106"]
[12,"12 Медико-технически лаборатории - Монтана","107"]
[12,"12 МБАЛ Д-р Ст. Илиев - Монтана","2010003"]
[12,"12 МБАЛ Св. Н. Чудотворец  - Лом","2010001"]
[12,"12 МБАЛ - Берковица","2010002"]
[12,"12 Частна МБАЛ Сити клиник Св. Георги - Монтана","2070001"]
[13,"13 Амбулатории за ИП ПДП - Пазарджик ","111"]
[13,"13 Амбулатории за ГП ПДП - Пазарджик ","112"]
[13,"13 Амбулатории за ИП СДП - Пазарджик ","121"]
[13,"13 Амбулатории за ГП СДП - Пазарджик ","122"]
[13,"13 Амбулатории за ИП СМП - Пазарджик ","131"]
[13,"13 Медицински центрове - Пазарджик","102"]
[13,"13 Дентални центрове - Пазарджик","103"]
[13,"13 Медико-дентални центрове - Пазарджик","104"]
[13,"13 Диагностично-консултативни центрове - Пазарджик","105"]
[13,"13 Медико-диагностични лаборатории - Пазарджик","106"]
[13,"13 Медико-технически лаборатории - Пазарджик","107"]
[13,"13 МБАЛ - Пазарджик","2010004"]
[13,"13 МБАЛ - Велинград","2010002"]
[13,"13 СБПЛР ПФЗ - Велинград","2030001"]
[13,"13 СБАЛ на ПФЗ - Пазарджик","2030002"]
[13,"13 Частна МБАЛ Хигия - Пазарджик","2070005"]
[13,"13 Частна МБАЛ Хигия-север - Пазарджик","2070001"]
[13,"13 Частна МБАЛ Пълмед-МС-Здраве - Пазарджик","2070002"]
[13,"13 Частна МБАЛ Здраве - Велинград","2070004"]
[13,"13 Частна МБАЛ Уни Хоспитал - Панагюрище",2070006]
[13,"13 Частна МБАЛ Проф. Ранев - Пещера",2070007]
[13,"13 СБР НК - Велинград","2040001"]
[14,"14 Амбулатории за ИП ПДП - Перник ","111"]
[14,"14 Амбулатории за ГП ПДП - Перник ","112"]
[14,"14 Амбулатории за ИП СДП - Перник ","121"]
[14,"14 Амбулатории за ГП СДП - Перник ","122"]
[14,"14 Амбулатории за ИП СМП - Перник ","131"]
[14,"14 Медицински центрове - Перник","102"]
[14,"14 Дентални центрове - Перник","103"]
[14,"14 Медико-дентални центрове - Перник","104"]
[14,"14 Диагностично-консултативни центрове - Перник","105"]
[14,"14 Медико-диагностични лаборатории - Перник","106"]
[14,"14 Медико-технически лаборатории - Перник","107"]
[14,"14 МБАЛ Д-р Р. Ангелова - Перник","2010001"]
[14,"14 СБАЛ по ББ - Перник","2030001"]
[14,"14 Частна СБАЛ по кардиология Св. Георги - Перник","2070001"]
[15,"15 Амбулатории за ИП ПДП - Плевен ","111"]
[15,"15 Амбулатории за ГП ПДП - Плевен ","112"]
[15,"15 Амбулатории за ИП СДП - Плевен ","121"]
[15,"15 Амбулатории за ГП СДП - Плевен ","122"]
[15,"15 Амбулатории за ИП СМП - Плевен ","131"]
[15,"15 Медицински центрове - Плевен","102"]
[15,"15 Дентални центрове - Плевен","103"]
[15,"15 Медико-дентални центрове - Плевен","104"]
[15,"15 Диагностично-консултативни центрове - Плевен","105"]
[15,"15 Медико-диагностични лаборатории - Плевен","106"]
[15,"15 Медико-технически лаборатории - Плевен","107"]
[15,"15 УМБАЛ Д-р Г. Странски - Плевен","2010007"]
[15,"15 МБАЛ - Белене","2010001"]
[15,"15 МБАЛ - Гулянци","2010002"]
[15,"15 МБАЛ - Кнежа","2010006"]
[15,"15 МБАЛ - Левски","2010003"]
[15,"15 МБАЛ - Никопол","2010004"]
[15,"15 МБАЛ - Червен бряг","2010005"]
["15","15 МБАЛ ВМА - Плевен","2010008"]
[15,"15 Частна МБАЛ Авис Медика - Плевен","2070001"]
[15,"15 Частни МБАЛ Св. Панталеймон - Плевен","2070003"]
[15,"15 Частна УМБАЛ Св. Марина - Плевен",2070004]
[15,"15 Частна МБАЛ Сърце и мозък - Плевен",2070005]
[15,"15 Частна МБАЛ Св. Параскева - Плевен","2070006"]
[15,"15 Частни СБАЛ по кардиология - Плевен","2070002"]
[16,"16 Амбулатории за ИП ПДП - Пловдив ","111"]
[16,"16 Амбулатории за ГП ПДП - Пловдив ","112"]
[16,"16 Амбулатории за ИП СДП - Пловдив ","121"]
[16,"16 Амбулатории за ГП СДП - Пловдив ","122"]
[16,"16 Амбулатории за ИП СМП - Пловдив ","131"]
[16,"16 Медицински центрове - Пловдив","102"]
[16,"16 Дентални центрове - Пловдив","103"]
[16,"16 Медико-дентални центрове - Пловдив","104"]
[16,"16 Диагностично-консултативни центрове - Пловдив","105"]
[16,"16 Медико-диагностични лаборатории - Пловдив","106"]
[16,"16 Медико-технически лаборатории - Пловдив","107"]
[16,"16 УМБАЛ Св. Георги - Пловдив","2010004"]
[16,"16 УМБАЛ - Пловдив","2010006"]
[16,"16 МБАЛ Св. Мина - Пловдив","2010005"]
[16,"16 МБАЛ Св. Пантелеймон - Пловдив","2010007"]
[16,"16 МБАЛ - Асеновград","2010008"]
[16,"16 МБАЛ Д-р К. Попов - Карлово","2010001"]
[16,"16 МБАЛ - Първомай","2010002"]
[16,"16 МБАЛ - Раковски","2010003"]
[16,"16 МТБ - Пловдив","2010009"]
[16,"16 МБАЛ ВМА - Пловдив","2010010"]
[16,"16 Частна УМБАЛ Каспела - Пловдив","2070001"]
[16,"16 Частна МБАЛ Уромедикс - Пловдив","2070002"]
[16,"16 Частна МБАЛ Медлайн Клиник - Пловдив","2070007"]
[16,"16 Частна МБАЛ Св.Св. Козма и Дамян - Пловдив","2070004"]
[16,"16 Частна УМБАЛ Пълмед - Пловдив","2070005"]
[16,"16 Частна УМБАЛ Еврохоспитал - Пловдив","2070009"]
[16,"16 Частна МБАЛ Централ Онкохоспитал - Пловдив",2070010]
[16,"16 Частна МБАЛ Св. Каридат - Пловдив",2070011]
[16,"16 Частна МБАЛ МК Св. Ив. Рилски - Пловдив",2070012]
[16,"16 Частна МБАЛ Тримонциум - Пловдив",2070013]
[16,"16 Частна СБАЛ АГ Торакс - Пловдив","2070006"]
[16,"16 Частна УСБАЛ АГ Селена - Пловдив","2070003"]
[16,"16 Частна СХБАЛ Медикус Алфа - Пловдив","2070008"]
[16,"16 МБПЛР - Стамболийски","2040001"]
[16,"16 МБПЛ Иван Раев - Сопот","2040003"]
[16,"16 Факултет по дентална медицина - Пловдив","206"]
[16,"16 Комплексен онкологичен център - Пловдив","301"]
[17,"17 Амбулатории за ИП ПДП - Разград ","111"]
[17,"17 Амбулатории за ГП ПДП - Разград ","112"]
[17,"17 Амбулатории за ИП СДП - Разград ","121"]
[17,"17 Амбулатории за ГП СДП - Разград ","122"]
[17,"17 Амбулатории за ИП СМП - Разград ","131"]
[17,"17 Медицински центрове - Разград","102"]
[17,"17 Дентални центрове - Разград","103"]
[17,"17 Медико-дентални центрове - Разград","104"]
[17,"17 Диагностично-консултативни центрове - Разград","105"]
[17,"17 Медико-диагностични лаборатории - Разград","106"]
[17,"17 Медико-технически лаборатории - Разград","107"]
[17,"17 МБАЛ Св. Ив. Рилски - Разград","2010002"]
[17,"17 МБАЛ - Исперих","2010003"]
[17,"17 МБАЛ - Кубрат","2010001"]
[18,"18 Амбулатории за ИП ПДП - Русе ","111"]
[18,"18 Амбулатории за ГП ПДП - Русе ","112"]
[18,"18 Амбулатории за ИП СДП - Русе ","121"]
[18,"18 Амбулатории за ГП СДП - Русе ","122"]
[18,"18 Амбулатории за ИП СМП - Русе ","131"]
[18,"18 Медицински центрове - Русе","102"]
[18,"18 Дентални центрове - Русе","103"]
[18,"18 Медико-дентални центрове - Русе","104"]
[18,"18 Диагностично-консултативни центрове - Русе","105"]
[18,"18 Медико-диагностични лаборатории - Русе","106"]
[18,"18 Медико-технически лаборатории - Русе","107"]
[18,"18 УМБАЛ Канев - Русе","2010002"]
[18,"18 МБАЛ Ю. Вревска - Бяла","2010001"]
[18,"18 СБАЛ на ПФЗ Д-р Д. Граматиков - Русе","2030001"]
[18,"18 Частна СБАЛК Медика Кор - Русе","2070001"]
[18,"18 Частна УМБАЛ Медика - Русе","2070003"]
[18,"18 Комплексен онкологичен център - Русе","301"]
[19,"19 Амбулатории за ИП ПДП - Силистра ","111"]
[19,"19 Амбулатории за ГП ПДП - Силистра ","112"]
[19,"19 Амбулатории за ИП СДП - Силистра ","121"]
[19,"19 Амбулатории за ГП СДП - Силистра ","122"]
[19,"19 Амбулатории за ИП СМП - Силистра ","131"]
[19,"19 Медицински центрове - Силистра","102"]
[19,"19 Дентални центрове - Силистра","103"]
[19,"19 Медико-дентални центрове - Силистра","104"]
[19,"19 Диагностично-консултативни центрове - Силистра","105"]
[19,"19 Медико-диагностични лаборатории - Силистра","106"]
[19,"19 Медико-технически лаборатории - Силистра","107"]
[19,"19 МБАЛ - Силистра","2010003"]
[19,"19 МБАЛ - Дулово","2010001"]
[19,"19 МБАЛ - Тутракан","2010002"]
[20,"20 Амбулатории за ИП ПДП - Сливен ","111"]
[20,"20 Амбулатории за ГП ПДП - Сливен ","112"]
[20,"20 Амбулатории за ИП СДП - Сливен ","121"]
[20,"20 Амбулатории за ГП СДП - Сливен ","122"]
[20,"20 Амбулатории за ИП СМП - Сливен ","131"]
[20,"20 Медицински центрове - Сливен","102"]
[20,"20 Дентални центрове - Сливен","103"]
[20,"20 Медико-дентални центрове - Сливен","104"]
[20,"20 Диагностично-консултативни центрове - Сливен","105"]
[20,"20 Медико-диагностични лаборатории - Сливен","106"]
[20,"20 Медико-технически лаборатории - Сливен","107"]
[20,"20 МБАЛ Д-р Ив. Селимински - Сливен","2010002"]
[20,"20 МБАЛ Св. П. Българска - Нова Загора","2010001"]
[20,"20 МБАЛ ВМА - Сливен","2010003"]
[20,"20 Частна МБАЛ Х. Димитър - Сливен","2070001"]
[20,"20 Частна СБАЛХ Амброаз Паре - Сливен","2070002"]
[20,"20 Частна САГБАЛ Ева - Сливен","2070003"]
[21,"21 Амбулатории за ИП ПДП - Смолян ","111"]
[21,"21 Амбулатории за ГП ПДП - Смолян ","112"]
[21,"21 Амбулатории за ИП СДП - Смолян ","121"]
[21,"21 Амбулатории за ГП СДП - Смолян ","122"]
[21,"21 Амбулатории за ИП СМП - Смолян ","131"]
[21,"21 Медицински центрове - Смолян","102"]
[21,"21 Дентални центрове - Смолян","103"]
[21,"21 Медико-дентални центрове - Смолян","104"]
[21,"21 Диагностично-консултативни центрове - Смолян","105"]
[21,"21 Медико-диагностични лаборатории - Смолян","106"]
[21,"21 Медико-технически лаборатории - Смолян","107"]
[21,"21 МБАЛ Д-р Бр. Шукеров - Смолян","2010005"]
[21,"21 МБАЛ Проф. д-р К. Чилов - Мадан","2010002"]
[21,"21 МБАЛ - Девин","2010003"]
[21,"21 МБАЛ Д-р Ас. Шопов - Златоград","2010004"]
[22,"22 Амбулатории за ИП ПДП - София (столица) ","111"]
[22,"22 Амбулатории за ГП ПДП - София (столица) ","112"]
[22,"22 Амбулатории за ИП СДП - София (столица) ","121"]
[22,"22 Амбулатории за ГП СДП - София (столица) ","122"]
[22,"22 Амбулатории за ИП СМП - София (столица) ","131"]
[22,"22 Медицински центрове - София (столица)","102"]
[22,"22 Дентални центрове - София (столица)","103"]
[22,"22 Медико-дентални центрове - София (столица)","104"]
[22,"22 Диагностично-консултативни центрове - София (столица)","105"]
[22,"22 Медико-диагностични лаборатории - София (столица)","106"]
[22,"22 Медико-технически лаборатории - София (столица)","107"]
[22,"22 У І МБАЛ Св. Йоан Кръстител - София (столица)","2010012"]
[22,"22 II МБАЛ - София (столица)","2010007"]
[22,"22 IV МБАЛ - София (столица)","2010001"]
[22,"22 V МБАЛ Княгиня Клементина - София (столица)","2010002"]
[22,"22 УМБАЛ Пирогов - София (столица)","2010003"]
[22,"22 УМБАЛ Св. Иван Рилски - София (столица)","2010004"]
[22,"22 УМБАЛ Царица Йоанна - София (столица)","2010005"]
[22,"22 УМБАЛ Александровска - София (столица)","2010006"]
[22,"22 УМБАЛ Св. Наум - София (столица)","2010010"]
[22,"22 УМБАЛ НКБ - София (столица)","2010011"]
[22,"22 УМБАЛ Св. Eкатерина - София (столица)",2010015]
[22,"22 НМБТ Цар Борис III - София (столица)","2010013"]
[22,"22 МБАЛ ВМА - София (столица)","2010014"]
[22,"22 МИ-МВР - София (столица)","2010008"]
[22,"22 УМБАЛ Лозенец - София (столица)","2010009"]
[22,"22 УСБАЛ по ортопедия Проф.Бойчев - София (столица)","2020006"]
[22,"22 УСБАЛ по ИПЗ Проф. Киров - София (столица)","2020007"]
[22,"22 УСБАЛ по АГ Майчин дом - София (столица)","2020009"]
[22,"22 УСБАЛ ДБ Проф. Митев - София (столица)","2020010"]
[22,"22 УСБАЛ по онкология - София (столица)","2020011"]
[22,"22 УСБАЛ по ендокринология Акад.Ив.Пенчев - София (столица)","2020012"]
[22,"22 УСБАЛ ХЗ - София (столица)",2020017]
[22,"22 СБАЛ по АГ Св.София - София (столица)","2020001"]
[22,"22 СБАЛ по АГ Шейново - София (столица)","2020003"]
[22,"22 СБАЛ ОЗ - София (столица)","2020016"]
[22,"22 СБАЛ по ТОСМ - София (столица)","2020005"]
[22,"22 СБАЛ ЛС към МП - София (столица)","2020014"]
[22,"22 СБАЛОЗ - София (столица)","2020016"]
[22,"22 СБПФЗПЛР Цар Фердинанд - Искрец - София (столица)","2030002"]
[22,"22 Частна МБАЛ Доверие - София (столица)","2070002"]
[22,"22 Частна МБАЛ Св. София - София (столица)","2070006"]
[22,"22 Частна МБАЛ Аджибадем-Сити Клиник-Токуда - София (столица)","2070008"]
[22,"22 Частна МБАЛ Св. Панталеймон - София (столица)","2070009"]
[22,"22 Частна МБАЛ Вита - София (столица)","2070010"]
[22,"22 Частна МБАЛ Люлин - София (столица)","2070011"]
[22,"22 Частна МБАЛ Сердика - София (столица)","2070012"]
[22,"22 Частна УМБАЛ Софиямед - София (столица)","2070014"]
[22,"22 Частна МБАЛ Полимед - София (столица)","2070015"]
[22,"22 Частна УМБАЛ Сити Клиник - София (столица)",2070016]
[22,"22 Частна МБАЛ Женско здраве Надежда - София (столица)",2070018]
[22,"22 Частна МБАЛ Здравето 2012 - София (столица)",2070019]
[22,"22 Частна МБАЛ Болница Европа - София (столица)","2070021"]
[22,"22 Частна МБПЛР Сердика - София (столица)",2070020]
[22,"22 Частна СБАЛ по АГ Д-р Щерев - София (столица)","2070001"]
[22,"22 Частна СБАЛГАР Малинов - София (столица)","2070005"]
[22,"22 Частна СБАЛ АГ Св.Лазар - София (столица)","2070013"]
[22,"22 Частна СБАЛОТ Витоша - София (столица)","2070003"]
[22,"22 Частна СБР Здраве - София (столица)","2070004"]
[22,"22 СБ за ФТР Овча купел - София (столица)","2040001"]
[22,"22 СБПЛР - кв. Панчарево","2040003"]
[22,"22 СБПЛР - Бухово","2040004"]
[22,"22 Факултет по дентална медицина - София (столица)","206"]
[23,"23 Амбулатории за ИП ПДП - София ","111"]
[23,"23 Амбулатории за ГП ПДП - София ","112"]
[23,"23 Амбулатории за ИП СДП - София ","121"]
[23,"23 Амбулатории за ГП СДП - София ","122"]
[23,"23 Амбулатории за ИП СМП - София ","131"]
[23,"23 Медицински центрове - София","102"]
[23,"23 Дентални центрове - София","103"]
[23,"23 Медико-дентални центрове - София","104"]
[23,"23 Диагностично-консултативни центрове - София","105"]
[23,"23 Медико-диагностични лаборатории - София","106"]
[23,"23 Медико-технически лаборатории - София","107"]
[23,"23 УМБАЛ Св.Анна - София","2010008"]
[23,"23 МБАЛ - Ботевград","2010006"]
[23,"23 МБАЛ - Елин Пелин","2010005"]
[23,"23 МБАЛ Проф. д-р Ал. Герчев - Етрополе","2010003"]
[23,"23 МБАЛ - Ихтиман","2010002"]
[23,"23 МБАЛ - Пирдоп","2010001"]
[23,"23 МБАЛ - Самоков","2010007"]
[23,"23 МБАЛ - Своге","2010004"]
[23,"23 СБАЛ по онкологични заболявания - София","2020002"]
[23,"23 СБАЛ на ПФЗ - София","2030001"]
[23,"23 Частна МБАЛ Скин Системс - Доганово","2070001"]
[23,"23 СБПЛР - Костенец","2040001"]
[24,"24 Амбулатории за ИП ПДП - Стара Загора ","111"]
[24,"24 Амбулатории за ГП ПДП - Стара Загора ","112"]
[24,"24 Амбулатории за ИП СДП - Стара Загора ","121"]
[24,"24 Амбулатории за ГП СДП - Стара Загора ","122"]
[24,"24 Амбулатории за ИП СМП - Стара Загора ","131"]
[24,"24 Медицински центрове - Стара Загора","102"]
[24,"24 Дентални центрове - Стара Загора","103"]
[24,"24 Медико-дентални центрове - Стара Загора","104"]
[24,"24 Диагностично-консултативни центрове - Стара Загора","105"]
[24,"24 Медико-диагностични лаборатории - Стара Загора","106"]
[24,"24 Медико-технически лаборатории - Стара Загора","107"]
[24,"24 УМБАЛ Проф. д-р Ст.Киркович - Стара Загора","2010002"]
[24,"24 МБАЛ Д-р Хр. Стамболски - Казанлък","2010001"]
[24,"24 МБАЛ - Гълъбово","2010003"]
[24,"24 МБАЛ - Чирпан","2010004"]
[24,"24 СБАЛ на ПФЗ - Стара Загора","2030002"]
[24,"24 Частна МБАЛ Ниа Мед - Стара Загора","2070004"]
[24,"24 Частна МБАЛ МК Ив. Рилски - Стара Загора",2070005]
[24,"24 Частна МБАЛ Тракия - Стара Загора",2070006]
[24,"24 Частна МБАЛ Д-р Д. Чакмаков  - Раднево","2070009"]
[24,"24 Частна СБНАЛ Св. Лазар - Казанлък","2070001"]
[24,"24 СБР НК - Павел баня","2040001"]
[24,"24 Комплексен онкологичен център - Стара Загора","301"]
[25,"25 Амбулатории за ИП ПДП - Търговище ","111"]
[25,"25 Амбулатории за ГП ПДП - Търговище ","112"]
[25,"25 Амбулатории за ИП СДП - Търговище ","121"]
[25,"25 Амбулатории за ГП СДП - Търговище ","122"]
[25,"25 Амбулатории за ИП СМП - Търговище ","131"]
[25,"25 Медицински центрове - Търговище","102"]
[25,"25 Дентални центрове - Търговище","103"]
[25,"25 Медико-дентални центрове - Търговище","104"]
[25,"25 Диагностично-консултативни центрове - Търговище","105"]
[25,"25 Медико-диагностични лаборатории - Търговище","106"]
[25,"25 Медико-технически лаборатории - Търговище","107"]
[25,"25 MБАЛ - Търговище","2010003"]
[25,"25 MБАЛ Д-р Н. Маринов - Попово","2010001"]
[25,"25 МБАЛ Д-р П. Томов - Омуртаг","2010002"]
[26,"26 Амбулатории за ИП ПДП - Хасково ","111"]
[26,"26 Амбулатории за ГП ПДП - Хасково ","112"]
[26,"26 Амбулатории за ИП СДП - Хасково ","121"]
[26,"26 Амбулатории за ГП СДП - Хасково ","122"]
[26,"26 Амбулатории за ИП СМП - Хасково ","131"]
[26,"26 Медицински центрове - Хасково","102"]
[26,"26 Дентални центрове - Хасково","103"]
[26,"26 Медико-дентални центрове - Хасково","104"]
[26,"26 Диагностично-консултативни центрове - Хасково","105"]
[26,"26 Медико-диагностични лаборатории - Хасково","106"]
[26,"26 Медико-технически лаборатории - Хасково","107"]
["26","26 МБАЛ - Хасково","2010006"]
["26","26 МБАЛ Св. Екатерина - Димитровград","2010004"]
["26","26 МБАЛ - Свиленград","2010005"]
["26","26 МБАЛ - Харманли","2010002"]
["26","26 СБАЛ по ВБ - Тополовград","2020001"]
["26","26 СБАЛ по онкология - Хасково","2020002"]
["26","26 СБАЛ  на ПФЗ - Хасково","2030001"]
[27,"27 Амбулатории за ИП ПДП - Шумен ","111"]
[27,"27 Амбулатории за ГП ПДП - Шумен ","112"]
[27,"27 Амбулатории за ИП СДП - Шумен ","121"]
[27,"27 Амбулатории за ГП СДП - Шумен ","122"]
[27,"27 Амбулатории за ИП СМП - Шумен ","131"]
[27,"27 Медицински центрове - Шумен","102"]
[27,"27 Дентални центрове - Шумен","103"]
[27,"27 Медико-дентални центрове - Шумен","104"]
[27,"27 Диагностично-консултативни центрове - Шумен","105"]
[27,"27 Медико-диагностични лаборатории - Шумен","106"]
[27,"27 Медико-технически лаборатории - Шумен","107"]
[27,"27 МБАЛ - Шумен","2010003"]
[27,"27 МБАЛ - В. Преслав","2010001"]
[27,"27 Частна СБАЛ кардиология Мадара - Шумен",2070001]
[27,"27 Комплексен онкологичен център - Шумен","301"]
[28,"28 Амбулатории за ИП ПДП - Ямбол ","111"]
[28,"28 Амбулатории за ГП ПДП - Ямбол ","112"]
[28,"28 Амбулатории за ИП СДП - Ямбол ","121"]
[28,"28 Амбулатории за ГП СДП - Ямбол ","122"]
[28,"28 Амбулатории за ИП СМП - Ямбол ","131"]
[28,"28 Медицински центрове - Ямбол","102"]
[28,"28 Дентални центрове - Ямбол","103"]
[28,"28 Медико-дентални центрове - Ямбол","104"]
[28,"28 Диагностично-консултативни центрове - Ямбол","105"]
[28,"28 Медико-диагностични лаборатории - Ямбол","106"]
[28,"28 Медико-технически лаборатории - Ямбол","107"]
[28,"28 МБАЛ Св. Пантелеймон - Ямбол","2010002"]
[28,"28 МБАЛ Св. Ив. Рилски - Елхово","2010001"]
[28,"28 Частна МБАЛ Св. Йоан Рилски - Ямбол","2070001"]
[28,"28 Частна СБАЛ по кардиология  - Ямбол","2070002"]